fUST/lending_fUST_20250519
["ID","MTS","AMOUNT","RATE_DAILY","PERIOD"]
[361638755,1747656649299,-430.0,0.00024109,4]
[361638757,1747656649308,-435.69,0.00024109,4]
[361638759,1747656649318,-430.0,0.00024109,4]
[361638761,1747656649327,-430.0,0.00024109,4]
[361638763,1747656649336,-240.0,0.00024109,4]
[361638765,1747656649346,-430.0,0.00024109,4]
[361638767,1747656649355,-440.0,0.00024109,4]
[361638769,1747656649364,-430.0,0.00024109,4]
[361638771,1747656649374,-430.0,0.00024109,4]
[361638773,1747656649383,-743.78,0.00024109,4]
[361638775,1747656649392,-430.0,0.00024109,4]
[361638777,1747656649402,-430.0,0.00024109,4]
[361638780,1747656649411,-430.0,0.00024109,4]
[361638782,1747656649421,-499.7,0.00024109,4]
[361638784,1747656649430,-430.0,0.00024109,4]
[361638786,1747656649439,-240.0,0.00024109,4]
[361638788,1747656649448,-430.0,0.00024109,4]
[361638790,1747656649458,-430.0,0.00024109,4]
[361638792,1747656649467,-930.87,0.00024109,4]
[361638794,1747656649476,-430.0,0.00024109,4]
[361638796,1747656649485,-430.0,0.00024109,4]
[361638798,1747656649495,-430.0,0.00024109,4]
[361638800,1747656649504,-240.0,0.00024109,4]
[361638802,1747656649513,-430.0,0.00024109,4]
[361638804,1747656649522,-170.0,0.00024164,7]
[361638806,1747656649531,-172.0,0.00024164,7]
[361638808,1747656649539,-500.0,0.00024195,2]
[361638810,1747656649548,-430.0,0.00024246,4]
[361638812,1747656649557,-257.60567447,0.00024246,4]
[361638814,1747656649568,-303.76170752,0.00024246,4]
[361638816,1747656649577,-327.24,0.00024246,4]
[361638818,1747656649586,-646.43,0.00024246,4]
[361638820,1747656649595,-430.0,0.00024246,4]
[361638822,1747656649603,-251.85317132,0.00024246,4]
[361638824,1747656649615,-430.0,0.00024246,4]
[361638826,1747656649624,-430.0,0.00024246,4]
[361638828,1747656649634,-430.0,0.00024246,4]
[361638829,1747656649644,-874.68,0.00024246,4]
[361638831,1747656649653,-430.0,0.00024246,4]
[361638833,1747656649662,-220.27508575,0.00024246,4]
[361638835,1747656649672,-430.0,0.00024246,4]
[361638837,1747656649681,-430.0,0.00024246,4]
[361638840,1747656649692,-214.34326414,0.00024246,4]
[361638842,1747656649701,-218.69803315,0.00024246,4]
[361638844,1747656649710,-430.0,0.00024246,4]
[361638846,1747656649719,-430.0,0.00024246,4]
[361638848,1747656649728,-218.08,0.00024246,4]
[361638850,1747656649738,-228.47139766,0.00024246,4]
[361638861,1747656649833,-430.0,0.00024246,4]
[361638863,1747656649843,-467.71572758,0.00024246,4]
[361638865,1747656649853,-430.0,0.00024246,4]
[361638867,1747656649863,-430.0,0.00024246,4]
[361638869,1747656649873,-430.0,0.00024246,4]
[361638871,1747656649883,-430.0,0.00024246,4]
[361638873,1747656649892,-397.71756498,0.00024246,4]
[361638875,1747656649902,-430.0,0.00024246,4]
[361638877,1747656649911,-430.0,0.00024246,4]
[361638879,1747656649921,-430.0,0.00024246,4]
[361638881,1747656649932,-430.0,0.00024246,4]
[361638883,1747656649941,-430.0,0.00024246,4]
[361638885,1747656649951,-430.0,0.00024246,4]
[361638887,1747656649960,-430.0,0.00024246,4]
[361638890,1747656649970,-430.0,0.00024246,4]
[361638892,1747656649979,-430.0,0.00024246,4]
[361638894,1747656649989,-430.0,0.00024246,4]
[361638896,1747656649998,-250.0,0.00024246,4]
[361638898,1747656650008,-430.0,0.00024246,4]
[361638900,1747656650022,-430.0,0.00024246,4]
[361638902,1747656650032,-469.68,0.00024246,4]
[361638904,1747656650041,-430.0,0.00024246,4]
[361638906,1747656650050,-430.0,0.00024246,4]
[361638908,1747656650060,-430.0,0.00024246,4]
[361638910,1747656650070,-430.0,0.00024246,4]
[361638912,1747656650079,-430.0,0.00024246,4]
[361638914,1747656650088,-176.31,0.00024246,4]
[361638916,1747656650099,-430.0,0.00024246,4]
[361638918,1747656650110,-430.0,0.00024246,4]
[361638920,1747656650119,-430.0,0.00024246,4]
[361638922,1747656650129,-430.0,0.00024246,4]
[361638924,1747656650139,-430.0,0.00024246,4]
[361638926,1747656650148,-430.0,0.00024246,4]
[361638928,1747656650157,-430.0,0.00024246,4]
[361638930,1747656650166,-430.0,0.00024246,4]
[361638932,1747656650176,-430.0,0.00024246,4]
[361638934,1747656650186,-430.0,0.00024246,4]
[361638936,1747656650195,-430.0,0.00024246,4]
[361638938,1747656650204,-430.0,0.00024246,4]
[361638940,1747656650214,-430.0,0.00024246,4]
[361638942,1747656650224,-430.0,0.00024246,4]
[361638944,1747656650233,-430.0,0.00024246,4]
[361638946,1747656650242,-430.0,0.00024246,4]
[361638948,1747656650251,-430.0,0.00024246,4]
[361638950,1747656650261,-430.0,0.00024246,4]
[361638952,1747656650271,-430.0,0.00024246,4]
[361638954,1747656650280,-430.0,0.00024246,4]
[361638956,1747656650290,-430.0,0.00024246,4]
[361638958,1747656650299,-266.246826,0.00024246,7]
[361638960,1747656650308,-430.0,0.00024246,4]
[361638962,1747656650318,-266.246826,0.00024246,7]
[361638964,1747656650327,-430.0,0.00024246,4]
[361638966,1747656650336,-430.0,0.00024246,4]
[361638968,1747656650346,-260.0,0.00024246,4]
[361638970,1747656650355,-430.0,0.00024246,4]
[361638972,1747656650365,-430.0,0.00024246,4]
[361638974,1747656650375,-542.26108119,0.00024246,4]
[361638976,1747656650384,-200.05047869,0.00024246,4]
[361638978,1747656650393,-430.0,0.00024246,4]
[361638980,1747656650403,-430.0,0.00024246,4]
[361638982,1747656650412,-430.0,0.00024246,4]
[361638984,1747656650421,-430.0,0.00024246,4]
[361638986,1747656650430,-430.0,0.00024246,4]
[361638988,1747656650440,-430.0,0.00024246,4]
[361638990,1747656650449,-430.0,0.00024246,4]
[361638992,1747656650458,-632.79,0.00024246,4]
[361638994,1747656650468,-430.0,0.00024246,4]
[361638996,1747656650477,-430.0,0.00024246,4]
[361638998,1747656650486,-430.0,0.00024246,4]
[361639000,1747656650496,-519.2447104,0.00024246,4]
[361639002,1747656650505,-430.0,0.00024246,4]
[361639004,1747656650514,-310.0,0.00024246,4]
[361639006,1747656650523,-430.0,0.00024246,4]
[361639008,1747656650532,-430.0,0.00024246,4]
[361639010,1747656650542,-430.0,0.00024246,4]
[361639012,1747656650551,-430.0,0.00024246,4]
[361639014,1747656650560,-430.0,0.00024246,4]
[361639016,1747656650570,-430.0,0.00024246,4]
[361639018,1747656650580,-430.0,0.00024246,4]
[361639020,1747656650589,-430.0,0.00024246,2]
[361639022,1747656650598,-163.25286183,0.00024246,4]
[361639024,1747656650607,-317.03934653,0.00024246,4]
[361639026,1747656650616,-643.04,0.00024246,4]
[361639028,1747656650626,-334.21,0.00024246,4]
[361639030,1747656650636,-430.0,0.00024246,4]
[361639032,1747656650645,-430.0,0.00024246,4]
[361639034,1747656650655,-150.9,0.00024246,4]
[361639036,1747656650664,-430.0,0.00024246,4]
[361639038,1747656650673,-1472.78,0.00024246,4]
[361639040,1747656650683,-430.0,0.00024246,4]
[361639042,1747656650692,-363.15,0.00024246,4]
[361639044,1747656650701,-430.0,0.00024246,4]
[361639046,1747656650711,-430.0,0.00024246,4]
[361639048,1747656650720,-430.0,0.00024246,4]
[361639050,1747656650730,-482.85,0.00024246,4]
[361639052,1747656650739,-430.0,0.00024246,4]
[361639054,1747656650748,-310.0,0.00024246,4]
[361639056,1747656650757,-430.0,0.00024246,4]
[361639058,1747656650766,-430.0,0.00024246,4]
[361639060,1747656650775,-310.0,0.00024246,4]
[361639062,1747656650784,-152.73462613,0.00024246,4]
[361639064,1747656650793,-673.45,0.00024246,4]
[361639066,1747656650802,-430.0,0.00024246,4]
[361639068,1747656650811,-430.0,0.00024246,4]
[361639070,1747656650821,-197.5,0.00024246,4]
[361639072,1747656650829,-311.75731938,0.00024246,4]
[361639074,1747656650839,-430.0,0.00024246,4]
[361639076,1747656650848,-366.43399899,0.00024246,4]
[361639078,1747656650857,-430.0,0.00024246,4]
[361639080,1747656650867,-430.0,0.00024246,4]
[361639082,1747656650876,-430.0,0.00024246,4]
[361639084,1747656650886,-3555.07,0.00024246,4]
[361639086,1747656650896,-1608.32,0.00024246,4]
[361639088,1747656650905,-430.0,0.00024246,4]
[361639090,1747656650914,-542.36524955,0.00024246,4]
[361639092,1747656650923,-430.0,0.00024246,4]
[361639094,1747656650932,-430.0,0.00024246,4]
[361639096,1747656650941,-430.0,0.00024246,4]
[361639098,1747656650953,-751.42,0.00024246,4]
[361639100,1747656650962,-430.0,0.00024246,4]
[361639103,1747656650971,-205.09464119,0.00024246,4]
[361639105,1747656650980,-430.0,0.00024246,4]
[361639107,1747656650989,-430.0,0.00024246,4]
[361639109,1747656650999,-171.7923627,0.00024246,4]
[361639110,1747656651008,-595.5,0.00024246,4]
[361639112,1747656651022,-430.0,0.00024246,4]
[361639115,1747656651031,-771.51,0.00024246,4]
[361639116,1747656651041,-430.0,0.00024246,4]
[361639118,1747656651050,-218.89353558,0.00024246,4]
[361639120,1747656651061,-533.94,0.00024246,4]
[361639122,1747656651070,-310.0,0.00024246,4]
[361639124,1747656651080,-430.0,0.00024246,4]
[361639127,1747656651089,-430.0,0.00024246,4]
[361639128,1747656651098,-907.92,0.00024246,4]
[361639130,1747656651107,-430.0,0.00024246,4]
[361639132,1747656651116,-430.0,0.00024246,4]
[361639134,1747656651126,-430.0,0.00024246,4]
[361639136,1747656651135,-430.0,0.00024246,4]
[361639138,1747656651145,-430.0,0.00024246,4]
[361639141,1747656651154,-821.51,0.00024246,4]
[361639143,1747656651164,-717.07,0.00024246,4]
[361639145,1747656651173,-3606.93,0.00024246,4]
[361639147,1747656651182,-430.0,0.00024246,4]
[361639148,1747656651192,-723.08,0.00024246,4]
[361639150,1747656651201,-430.0,0.00024246,4]
[361639152,1747656651210,-341.35,0.00024246,4]
[361639155,1747656651219,-961.22,0.00024246,4]
[361639156,1747656651229,-430.0,0.00024246,4]
[361639157,1747656651309,-430.0,0.00024246,4]
[361639158,1747656651325,-204.04723304,0.00024246,4]
[361639159,1747656651334,-430.0,0.00024246,4]
[361639161,1747656651344,-2592.52,0.00024246,4]
[361639162,1747656651354,-430.0,0.00024246,4]
[361639164,1747656651363,-430.0,0.00024246,4]
[361639166,1747656651372,-430.0,0.00024246,4]
[361639168,1747656651382,-3870.95,0.00024246,4]
[361639170,1747656651391,-430.0,0.00024246,4]
[361639172,1747656651400,-310.0,0.00024246,4]
[361639174,1747656651409,-5000.0,0.00024246,4]
[361639176,1747656651419,-430.0,0.00024246,4]
[361639178,1747656651429,-430.0,0.00024246,4]
[361639179,1747656651438,-565.63,0.00024246,4]
[361639180,1747656651447,-430.0,0.00024246,4]
[361639181,1747656651456,-175.1,0.00024246,4]
[361639182,1747656651465,-408.52,0.00024246,4]
[361639183,1747656651475,-430.0,0.00024246,4]
[361639184,1747656651484,-310.0,0.00024246,4]
[361639185,1747656651493,-430.0,0.00024246,4]
[361639186,1747656651503,-1178.79,0.00024246,4]
[361639187,1747656651512,-430.0,0.00024246,4]
[361639188,1747656651521,-430.0,0.00024246,4]
[361639189,1747656651531,-430.0,0.00024246,4]
[361639190,1747656651540,-204.39873604,0.00024246,4]
[361639191,1747656651549,-430.0,0.00024246,4]
[361639192,1747656651559,-430.0,0.00024246,4]
[361639193,1747656651567,-631.76,0.00024246,4]
[361639194,1747656651577,-557.78,0.00024246,4]
[361639195,1747656651586,-430.0,0.00024246,4]
[361639196,1747656651595,-483.72266744,0.00024246,4]
[361639197,1747656651604,-516.19,0.00024246,4]
[361639198,1747656651613,-310.0,0.00024246,4]
[361639199,1747656651623,-475.8,0.00024246,4]
[361639200,1747656651634,-430.0,0.00024246,4]
[361639201,1747656651643,-430.0,0.00024246,4]
[361639202,1747656651652,-556.32,0.00024246,4]
[361639203,1747656651661,-430.0,0.00024246,4]
[361639204,1747656651670,-430.0,0.00024246,4]
[361639205,1747656651679,-455.35,0.00024246,4]
[361639206,1747656651688,-430.0,0.00024246,4]
[361639207,1747656651698,-162.07125898,0.00024246,4]
[361639208,1747656651707,-160.651676,0.00024246,7]
[361639209,1747656651716,-1442.11,0.00024246,4]
[361639210,1747656651726,-430.0,0.00024246,4]
[361639211,1747656651735,-160.651676,0.00024246,7]
[361639212,1747656651744,-430.0,0.00024246,4]
[361639213,1747656651754,-430.0,0.00024246,4]
[361639214,1747656651764,-758.25,0.00024246,4]
[361639215,1747656651773,-242.71,0.00024246,4]
[361639216,1747656651783,-430.0,0.00024246,4]
[361639217,1747656651792,-430.0,0.00024246,4]
[361639218,1747656651803,-430.0,0.00024246,4]
[361639219,1747656651812,-187.74,0.00024246,4]
[361639220,1747656651821,-430.0,0.00024246,4]
[361639221,1747656651831,-430.0,0.00024246,4]
[361639222,1747656651840,-579.79,0.00024246,4]
[361639223,1747656651850,-1127.85,0.00024246,4]
[361639224,1747656651859,-567.63,0.00024246,4]
[361639225,1747656651868,-430.0,0.00024246,4]
[361639226,1747656651879,-430.0,0.00024246,4]
[361639227,1747656651888,-310.0,0.00024246,4]
[361639228,1747656651898,-449.44098665,0.00024246,4]
[361639229,1747656651907,-430.0,0.00024246,4]
[361639230,1747656651916,-435.69,0.00024246,4]
[361639231,1747656651926,-430.0,0.00024246,4]
[361639232,1747656651935,-430.0,0.00024246,4]
[361639233,1747656651944,-430.0,0.00024246,4]
[361639234,1747656651953,-403.93,0.00024246,4]
[361639235,1747656651963,-430.0,0.00024246,4]
[361639237,1747656651972,-743.78,0.00024246,4]
[361639238,1747656651982,-430.0,0.00024246,4]
[361639239,1747656651992,-430.0,0.00024246,4]
[361639240,1747656652002,-430.0,0.00024246,4]
[361639241,1747656652012,-499.7,0.00024246,4]
[361639242,1747656652025,-528.39,0.00024246,4]
[361639243,1747656652035,-430.0,0.00024246,4]
[361639244,1747656652044,-430.0,0.00024246,4]
[361639245,1747656652053,-430.0,0.00024246,4]
[361639246,1747656652066,-430.0,0.00024246,4]
[361639247,1747656652075,-930.87,0.00024246,4]
[361639248,1747656652084,-430.0,0.00024246,4]
[361639249,1747656652095,-310.0,0.00024246,4]
[361639250,1747656652105,-7481.78220131,0.00024271,2]
[361639251,1747656652114,-204.01651643,0.00024275,10]
[361639252,1747656652124,-500.0,0.00024295,6]
[361639253,1747656652133,-430.0,0.00024383,4]
[361639254,1747656652143,-646.43,0.00024383,4]
[361639255,1747656652152,-430.0,0.00024383,4]
[361639256,1747656652162,-430.0,0.00024383,4]
[361639257,1747656652171,-430.0,0.00024383,4]
[361639258,1747656652181,-430.0,0.00024383,4]
[361639259,1747656652191,-874.68,0.00024383,4]
[361639260,1747656652200,-540.65,0.00024383,4]
[361639261,1747656652210,-384.24,0.00024383,4]
[361639262,1747656652219,-430.0,0.00024383,4]
[361639263,1747656652228,-430.0,0.00024383,4]
[361639264,1747656652237,-430.0,0.00024383,4]
[361639265,1747656652247,-430.0,0.00024383,4]
[361639266,1747656652256,-430.0,0.00024383,4]
[361639267,1747656652265,-430.0,0.00024383,4]
[361639268,1747656652274,-214.09950295,0.00024383,4]
[361639269,1747656652284,-430.0,0.00024383,4]
[361639270,1747656652293,-430.0,0.00024383,4]
[361639271,1747656652303,-436.12,0.00024383,4]
[361639272,1747656652312,-430.0,0.00024383,4]
[361639273,1747656652322,-430.0,0.00024383,4]
[361639274,1747656652331,-220.0,0.00024383,4]
[361639275,1747656652340,-430.0,0.00024383,4]
[361639276,1747656652350,-578.50209117,0.00024383,4]
[361639277,1747656652359,-430.0,0.00024383,4]
[361639278,1747656652368,-531.78,0.00024383,4]
[361639279,1747656652378,-430.0,0.00024383,4]
[361639280,1747656652390,-430.0,0.00024383,4]
[361639281,1747656652399,-430.0,0.00024383,4]
[361639282,1747656652408,-220.0,0.00024383,4]
[361639283,1747656652418,-430.0,0.00024383,4]
[361639284,1747656652427,-430.0,0.00024383,4]
[361639285,1747656652436,-430.0,0.00024383,4]
[361639286,1747656652446,-430.0,0.00024383,4]
[361639287,1747656652455,-430.0,0.00024383,4]
[361639288,1747656652464,-230.0,0.00024383,4]
[361639289,1747656652474,-220.0,0.00024383,4]
[361639290,1747656652483,-430.0,0.00024383,4]
[361639291,1747656652492,-546.85,0.00024383,4]
[361639292,1747656652502,-174.04469604,0.00024383,4]
[361639293,1747656652511,-430.0,0.00024383,4]
[361639294,1747656652522,-267.77056473,0.00024383,4]
[361639295,1747656652531,-239.3458762,0.00024383,4]
[361639296,1747656652540,-430.0,0.00024383,4]
[361639297,1747656652550,-430.0,0.00024383,4]
[361639298,1747656652560,-430.0,0.00024383,4]
[361639299,1747656652569,-220.0,0.00024383,4]
[361639300,1747656652579,-391.82,0.00024383,4]
[361639301,1747656652588,-430.0,0.00024383,4]
[361639302,1747656652598,-220.0,0.00024383,4]
[361639303,1747656652607,-430.0,0.00024383,4]
[361639304,1747656652693,-220.0,0.00024383,4]
[361639305,1747656652703,-430.0,0.00024383,4]
[361639306,1747656652712,-430.0,0.00024383,4]
[361639307,1747656652722,-224.21006618,0.00024383,4]
[361639309,1747656652867,-239.38993382,0.00024383,4]
[361639310,1747656652877,-266.246826,0.00024383,7]
[361639311,1747656652887,-430.0,0.00024383,4]
[361639312,1747656652896,-266.246826,0.00024383,7]
[361639313,1747656652906,-430.0,0.00024383,4]
[361639314,1747656652915,-280.0,0.00024383,4]
[361639315,1747656652924,-483.6,0.00024383,4]
[361639316,1747656652933,-430.0,0.00024383,4]
[361639317,1747656652943,-430.0,0.00024383,4]
[361639318,1747656652952,-430.0,0.00024383,4]
[361639319,1747656652961,-180.0,0.00024383,4]
[361639320,1747656652971,-430.0,0.00024383,4]
[361639321,1747656652980,-430.0,0.00024383,4]
[361639322,1747656652990,-430.0,0.00024383,4]
[361639323,1747656652999,-198.95969668,0.00024383,4]
[361639324,1747656653011,-231.04030332,0.00024383,4]
[361639325,1747656653024,-632.79,0.00024383,4]
[361639326,1747656653034,-430.0,0.00024383,4]
[361639327,1747656653043,-430.0,0.00024383,4]
[361639328,1747656653052,-370.11906913,0.00024383,4]
[361639329,1747656653063,-430.0,0.00024383,4]
[361639330,1747656653072,-430.0,0.00024383,4]
[361639331,1747656653081,-430.0,0.00024383,4]
[361639332,1747656653090,-270.0,0.00024383,4]
[361639333,1747656653100,-430.0,0.00024383,4]
[361639334,1747656653110,-295.81,0.00024383,4]
[361639335,1747656653121,-420.0,0.00024383,4]
[361639336,1747656653130,-430.0,0.00024383,4]
[361639337,1747656653140,-430.0,0.00024383,2]
[361639338,1747656653149,-643.04,0.00024383,4]
[361639339,1747656653159,-430.0,0.00024383,4]
[361639340,1747656653168,-430.0,0.00024383,4]
[361639341,1747656653177,-430.0,0.00024383,4]
[361639342,1747656653186,-1472.78,0.00024383,4]
[361639343,1747656653196,-430.0,0.00024383,4]
[361639344,1747656653205,-430.0,0.00024383,4]
[361639345,1747656653214,-430.0,0.00024383,4]
[361639346,1747656653225,-430.0,0.00024383,4]
[361639347,1747656653234,-482.85,0.00024383,4]
[361639348,1747656653243,-430.0,0.00024383,4]
[361639349,1747656653253,-430.0,0.00024383,4]
[361639350,1747656653262,-223.85400448,0.00024383,4]
[361639351,1747656653272,-673.45,0.00024383,4]
[361639352,1747656653281,-430.0,0.00024383,4]
[361639353,1747656653290,-402.11731761,0.00024383,4]
[361639354,1747656653300,-300.35,0.00024383,4]
[361639355,1747656653309,-430.0,0.00024383,4]
[361639356,1747656653319,-430.0,0.00024383,4]
[361639357,1747656653328,-430.0,0.00024383,4]
[361639358,1747656653337,-3555.07,0.00024383,4]
[361639359,1747656653347,-1608.32,0.00024383,4]
[361639360,1747656653356,-430.0,0.00024383,4]
[361639361,1747656653366,-430.0,0.00024383,4]
[361639362,1747656653375,-430.0,0.00024383,4]
[361639363,1747656653384,-430.0,0.00024383,4]
[361639364,1747656653394,-751.42,0.00024383,4]
[361639365,1747656653403,-430.0,0.00024383,4]
[361639366,1747656653413,-430.0,0.00024383,4]
[361639367,1747656653422,-331.8432711,0.00024383,4]
[361639368,1747656653435,-98.1567289,0.00024383,4]
[361639369,1747656653444,-328.36127567,0.00024383,4]
[361639370,1747656653455,-267.13872433,0.00024383,4]
[361639371,1747656653465,-430.0,0.00024383,4]
[361639372,1747656653474,-771.51,0.00024383,4]
[361639373,1747656653484,-430.0,0.00024383,4]
[361639374,1747656653495,-533.94,0.00024383,4]
[361639375,1747656653505,-430.0,0.00024383,4]
[361639376,1747656653514,-430.0,0.00024383,4]
[361639377,1747656653523,-907.92,0.00024383,4]
[361639378,1747656653533,-430.0,0.00024383,4]
[361639379,1747656653542,-430.0,0.00024383,4]
[361639380,1747656653552,-444.89,0.00024383,4]
[361639381,1747656653561,-277.95163896,0.00024383,4]
[361639382,1747656653570,-430.0,0.00024383,4]
[361639383,1747656653580,-821.51,0.00024383,4]
[361639384,1747656653589,-717.07,0.00024383,4]
[361639385,1747656653598,-3606.93,0.00024383,4]
[361639386,1747656653607,-430.0,0.00024383,4]
[361639387,1747656653616,-723.08,0.00024383,4]
[361639388,1747656653625,-477.76,0.00024383,4]
[361639389,1747656653635,-961.22,0.00024383,4]
[361639390,1747656653646,-430.0,0.00024383,4]
[361639391,1747656653656,-430.0,0.00024383,4]
[361639392,1747656653665,-430.0,0.00024383,4]
[361639393,1747656653675,-2592.52,0.00024383,4]
[361639394,1747656653684,-430.0,0.00024383,4]
[361639395,1747656653694,-278.56281727,0.00024383,4]
[361639397,1747656653710,-151.43718273,0.00024383,4]
[361639398,1747656653720,-410.08,0.00024383,4]
[361639399,1747656653730,-298.56824745,0.00024383,4]
[361639400,1747656653742,-3572.38175255,0.00024383,4]
[361639402,1747656653752,-209.8,0.00024383,4]
[361639404,1747656653761,-2510.16915278,0.00024383,4]
[361639414,1747656653847,-2489.83084722,0.00024383,4]
[361639416,1747656653857,-226.4,0.00024383,4]
[361639418,1747656653866,-430.0,0.00024383,4]
[361639420,1747656653875,-565.63,0.00024383,4]
[361639422,1747656653885,-430.0,0.00024383,4]
[361639424,1747656653894,-430.0,0.00024383,4]
[361639425,1747656653903,-430.0,0.00024383,4]
[361639427,1747656653912,-1178.79,0.00024383,4]
[361639429,1747656653922,-430.0,0.00024383,4]
[361639430,1747656653931,-430.0,0.00024383,4]
[361639431,1747656653940,-510.37,0.00024383,4]
[361639432,1747656653949,-430.0,0.00024383,4]
[361639433,1747656653958,-430.0,0.00024383,4]
[361639434,1747656653967,-631.76,0.00024383,4]
[361639435,1747656653976,-557.78,0.00024383,4]
[361639436,1747656653986,-430.0,0.00024383,4]
[361639437,1747656653995,-375.86269682,0.00024383,4]
[361639438,1747656654329,-388.6520281,0.00021008,2]
[361639439,1747656654338,-500.0,0.00021008,2]
[361639440,1747656654348,-372.2179719,0.00021008,2]
[361639441,1747656654838,-404.0,0.00020929,2]
[361639442,1747656654853,-189.88473598,0.00021008,2]
[361639443,1747656654868,-500.0,0.00021008,2]
[361639444,1747656654881,-500.0,0.00021008,2]
[361639445,1747656654891,-500.0,0.00021008,2]
[361639446,1747656654901,-500.0,0.00021008,2]
[361639447,1747656654911,-500.0,0.00021008,2]
[361639448,1747656654921,-500.0,0.00021008,2]
[361639449,1747656654931,-500.0,0.00021008,2]
[361639450,1747656654941,-542.02531691,0.00021008,2]
[361639451,1747656654951,-430.0,0.00023835,4]
[361639452,1747656654960,-221.64610395,0.00023835,4]
[361639453,1747656654970,-500.76372576,0.00023835,4]
[361639454,1747656654980,-430.0,0.00023835,4]
[361639455,1747656654990,-430.0,0.00023835,4]
[361639456,1747656655000,-430.0,0.00023835,4]
[361639457,1747656655010,-430.0,0.00023835,4]
[361639458,1747656655023,-430.0,0.00023835,4]
[361639459,1747656655033,-180.765,0.00023929,2]
[361639460,1747656655043,-430.0,0.00023972,4]
[361639461,1747656655052,-430.0,0.00023972,4]
[361639462,1747656655062,-430.0,0.00023972,4]
[361639463,1747656655071,-178.46843917,0.00023972,4]
[361639464,1747656655080,-430.0,0.00023972,4]
[361639465,1747656655090,-430.0,0.00023972,4]
[361639466,1747656655101,-517.58028268,0.00024109,4]
[361639467,1747656655110,-430.0,0.00024109,4]
[361639468,1747656655120,-430.0,0.00024109,4]
[361639469,1747656655129,-368.58,0.00024109,4]
[361639470,1747656655139,-430.0,0.00024246,4]
[361639471,1747656655148,-411.02397448,0.00024246,4]
[361639472,1747656655395,-99.93730318,0.00024383,4]
[361639473,1747656655412,-430.0,0.00024383,4]
[361639474,1747656655423,-430.0,0.00024383,4]
[361639475,1747656655432,-556.32,0.00024383,4]
[361639476,1747656655442,-430.0,0.00024383,4]
[361639477,1747656655451,-430.0,0.00024383,4]
[361639478,1747656655461,-183.86,0.00024383,4]
[361639479,1747656655470,-1442.11,0.00024383,4]
[361639480,1747656655480,-280.0,0.00024383,4]
[361639481,1747656655489,-430.0,0.00024383,4]
[361639482,1747656655499,-430.0,0.00024383,4]
[361639483,1747656655508,-758.25,0.00024383,4]
[361639484,1747656655517,-461.59981371,0.00024383,4]
[361639485,1747656655526,-430.0,0.00024383,4]
[361639486,1747656655536,-430.0,0.00024383,4]
[361639487,1747656655546,-430.0,0.00024383,4]
[361639488,1747656655555,-430.0,0.00024383,4]
[361639489,1747656655564,-579.79,0.00024383,4]
[361639490,1747656655574,-1127.85,0.00024383,4]